fUSD/lending_fUSD_20240317
["ID","MTS","AMOUNT","RATE_DAILY","PERIOD"]
[319334744,1710669037640,-1023.74585429,0.00013136,2]
[319334745,1710669037677,-1311.1,0.00013136,2]
[319334746,1710669037689,-1140.33664986,0.00013136,2]
[319334747,1710669037701,-6560.0,0.00013136,2]
[319334748,1710669037714,-5575.79993885,0.00013136,2]
[319334749,1710669037723,-476.69,0.00013136,2]
[319334750,1710669037733,-476.69,0.00013171,2]
[319334751,1710669037743,-476.69,0.00013207,2]
[319334752,1710669037752,-476.69,0.00013243,2]
[319334753,1710669037762,-476.69,0.00013278,2]
[319334754,1710669037772,-476.69,0.00013314,2]
[319334755,1710669037782,-476.69,0.00013349,2]
[319334756,1710669037791,-444.99754934,0.00013385,2]
[319334757,1710669037802,-31.69245066,0.00013385,2]
[319334758,1710669037813,-476.69,0.00013421,2]
[319334759,1710669037823,-476.69,0.00013456,2]
[319334760,1710669037832,-476.69,0.00013492,2]
[319334761,1710669037842,-476.69,0.00013528,2]
[319334762,1710669037852,-476.69,0.00013563,2]
[319334763,1710669037861,-476.69,0.00013599,2]
[319334764,1710669037870,-150.0,0.00013617,2]
[319334765,1710669037879,-159.78,0.00013632,2]
[319334766,1710669037889,-476.69,0.00013635,2]
[319334767,1710669037898,-476.69,0.0001367,2]
[319334768,1710669037907,-250.0,0.00013699,2]
[319334769,1710669037917,-180.12,0.00013699,2]
[319334770,1710669037926,-130.93103642,0.00013699,2]
[319334771,1710669037938,-511.54599987,0.00013699,2]
[319334772,1710669037949,-345.563353,0.00013699,2]
[319334773,1710669037997,-1762.95961071,0.00013699,2]
[319334774,1710669038007,-1233.94742053,0.00013699,4]
[319334784,1710669039510,-266.05257947,0.00013699,4]
[319334785,1710669039520,-1192.83,0.00013699,2]
[319334786,1710669039529,-500.0,0.00013699,2]
[319334787,1710669039538,-4540.31,0.00013699,2]
[319334788,1710669039547,-250.0,0.00013861,2]
[319334789,1710669039561,-240.0,0.0001392,2]
[319334790,1710669039570,-240.0,0.0001421,2]
[319334791,1710669039579,-160.0,0.00014299,2]
[319334792,1710669039588,-240.0,0.0001449,2]
[319334793,1710669039597,-796.98,0.00014656,2]
[319334794,1710669039606,-240.0,0.0001477,2]
[319334795,1710669039616,-550.0,0.00015,3]
[319334796,1710669039625,-240.0,0.0001506,2]
[319334797,1710669039634,-2555.9083,0.0001517,2]
[319334798,1710669039643,-206.66671639,0.00015198,2]
[319334799,1710669039654,-55.87084383,0.00015198,2]
[319334800,1710669039663,-1476.13292954,0.0001525,2]
[319334801,1710669039674,-999.04,0.0001525,2]
[319334802,1710669039685,-380.54081217,0.0001525,2]
[319334803,1710669039697,-437.30929872,0.0001525,2]
[319334804,1710669039709,-1216.17988,0.0001525,2]
[319334805,1710669039721,-5944.98860105,0.0001525,2]
[319334806,1710669039732,-3602.21195516,0.0001525,2]
[319334807,1710669039743,-4128.63986883,0.0001525,2]
[319334808,1710669039754,-3933.36463944,0.0001525,2]
[319334809,1710669039765,-4432.26839026,0.0001525,2]
[319334810,1710669039776,-6757.96750055,0.0001525,2]
[319334811,1710669039787,-27404.02185511,0.0001525,2]
[319334812,1710669039798,-702.576,0.0001525,2]
[319334813,1710669039811,-714.48834905,0.0001525,2]
[319334814,1710669041795,-170.94934335,0.00013698,2]
[319334815,1710669041805,-85.94958939,0.0001525,2]
[319334841,1710669042549,-3480.29102961,0.0001525,2]
[319334842,1710669042561,-518.38602001,0.0001525,2]
[319334843,1710669042574,-309083.15657362,0.0001525,2]
[319334844,1710669042584,-216.72790573,0.00015293,2]
[319334845,1710669042594,-376.44100055,0.000153,2]
[319334846,1710669042603,-1718.42,0.00015326,2]
[319334847,1710669042613,-240.0,0.0001534,2]
[319334848,1710669042624,-181.8,0.00015366,2]
[319334849,1710669042634,-229.07959584,0.0001537,2]
[319334850,1710669042643,-229.07959584,0.0001537,2]
[319334851,1710669042652,-500.0,0.00015379,2]
[319334852,1710669042661,-500.0,0.00015379,2]
[319334853,1710669042671,-500.0,0.00015379,2]
[319334854,1710669042681,-500.0,0.00015379,2]
[319334855,1710669042693,-500.0,0.00015379,2]
[319334856,1710669042704,-500.0,0.00015379,2]
[319334857,1710669042714,-500.0,0.00015379,2]
[319334858,1710669042723,-500.0,0.00015379,2]
[319334859,1710669042734,-276.25109587,0.00015379,2]
[319334860,1710669042744,-500.0,0.00015379,2]
[319334861,1710669042754,-500.0,0.00015379,2]
[319334862,1710669042764,-500.0,0.00015379,2]
[319334863,1710669042773,-500.0,0.00015379,2]
[319334864,1710669042783,-500.0,0.00015379,2]
[319334865,1710669042793,-500.0,0.00015379,2]
[319334866,1710669042804,-500.0,0.00015379,2]
[319334867,1710669042816,-500.0,0.00015379,2]
[319334868,1710669042826,-500.0,0.00015379,2]
[319334869,1710669042836,-500.0,0.00015379,2]
[319334870,1710669042846,-500.0,0.00015379,2]
[319334871,1710669042855,-500.0,0.00015379,2]
[319334872,1710669042864,-500.0,0.00015379,2]
[319334873,1710669042874,-502.79908624,0.00015379,2]
[319334874,1710669042883,-500.0,0.00015379,2]
[319334875,1710669042893,-500.0,0.00015379,2]
[319334876,1710669042902,-309.67323341,0.00015379,2]
[319334878,1710669042912,-500.0,0.00015379,2]
[319334880,1710669042921,-500.0,0.00015379,2]
[319334882,1710669042930,-500.0,0.00015379,2]
[319334883,1710669042940,-500.0,0.00015379,2]
[319334884,1710669042950,-500.0,0.00015379,2]
[319334885,1710669042959,-500.0,0.00015379,2]
[319334886,1710669042969,-500.0,0.00015379,2]
[319334887,1710669042979,-500.0,0.00015379,2]
[319334888,1710669042991,-500.0,0.00015379,2]
[319334889,1710669043000,-500.0,0.00015379,2]
[319334890,1710669043010,-500.0,0.00015379,2]
[319334891,1710669043019,-502.01759137,0.00015379,2]
[319334892,1710669043029,-500.0,0.00015379,2]
[319334893,1710669043038,-500.0,0.00015379,2]
[319334894,1710669043047,-500.0,0.00015379,2]
[319334895,1710669043057,-500.0,0.00015379,2]
[319334896,1710669043069,-500.0,0.00015379,2]
[319334897,1710669043078,-500.0,0.00015379,2]
[319334898,1710669043087,-500.0,0.00015379,2]
[319334900,1710669043096,-500.0,0.00015379,2]
[319334902,1710669043107,-500.0,0.00015379,2]
[319334904,1710669043116,-250.0,0.00015379,2]
[319334906,1710669043125,-649.06,0.00015379,2]
[319334907,1710669043135,-649.06,0.00015379,2]
[319334908,1710669043148,-649.06,0.00015379,2]
[319334909,1710669043157,-649.06,0.00015379,2]
[319334910,1710669043166,-649.06,0.00015379,2]
[319334911,1710669043175,-649.06,0.00015379,2]
[319334912,1710669043184,-649.06,0.00015379,2]
[319334913,1710669043193,-500.0,0.00015379,2]
[319334914,1710669043202,-500.0,0.00015379,2]
[319334915,1710669043211,-500.0,0.00015379,2]
[319334916,1710669043220,-500.0,0.00015379,2]
[319334917,1710669043229,-500.0,0.00015379,2]
[319334918,1710669043239,-500.0,0.00015379,2]
[319334919,1710669043248,-500.0,0.00015379,2]
[319334920,1710669043257,-500.0,0.00015379,2]
[319334921,1710669043266,-500.0,0.00015379,2]
[319334922,1710669043275,-500.0,0.00015379,2]
[319334923,1710669043285,-500.0,0.00015379,2]
[319334924,1710669043294,-500.0,0.00015379,2]
[319334925,1710669043303,-500.0,0.00015379,2]
[319334926,1710669043314,-500.0,0.00015379,2]
[319334927,1710669043324,-500.0,0.00015379,2]
[319334928,1710669043333,-500.0,0.00015379,2]
[319334929,1710669043343,-500.0,0.00015379,2]
[319334930,1710669043352,-500.0,0.00015379,2]
[319334931,1710669043361,-500.0,0.00015379,2]
[319334932,1710669043370,-500.0,0.00015379,2]
[319334933,1710669043379,-500.0,0.00015379,2]
[319334934,1710669043389,-500.0,0.00015379,2]
[319334935,1710669043398,-500.0,0.00015379,2]
[319334936,1710669043407,-500.0,0.00015379,2]
[319334937,1710669043417,-500.0,0.00015379,2]
[319334938,1710669043426,-500.0,0.00015379,2]
[319334939,1710669043436,-552.8,0.00015379,2]
[319334940,1710669043446,-500.0,0.00015379,2]
[319334941,1710669043456,-500.0,0.00015379,2]
[319334942,1710669043465,-500.0,0.00015379,2]
[319334943,1710669043475,-500.0,0.00015379,2]
[319334944,1710669043485,-500.0,0.00015379,2]
[319334945,1710669043495,-500.0,0.00015379,2]
[319334946,1710669043505,-500.0,0.00015379,2]
[319334947,1710669043514,-500.0,0.00015379,2]
[319334948,1710669043524,-500.0,0.00015379,2]
[319334949,1710669043534,-500.0,0.00015379,2]
[319334950,1710669043543,-500.0,0.00015379,2]
[319334951,1710669043552,-500.0,0.00015379,2]
[319334952,1710669043562,-500.0,0.00015379,2]
[319334953,1710669043571,-500.0,0.00015379,2]
[319334954,1710669043581,-500.0,0.00015379,2]
[319334955,1710669043590,-500.0,0.00015379,2]
[319334956,1710669043599,-500.0,0.00015379,2]
[319334957,1710669043608,-500.0,0.00015379,2]
[319334958,1710669043617,-500.0,0.00015379,2]
[319334959,1710669043627,-267.54607243,0.00015379,2]
[319334960,1710669043636,-4723.34,0.00015379,2]
[319334961,1710669043645,-4723.34,0.00015379,2]
[319334962,1710669043654,-4723.34,0.00015379,2]
[319334963,1710669043663,-4723.34,0.00015379,2]
[319334964,1710669043673,-4723.34,0.00015379,2]
[319334965,1710669043682,-4723.34,0.00015379,2]
[319334966,1710669043691,-4723.34,0.00015379,2]
[319334967,1710669043700,-5856.67,0.00015379,2]
[319334968,1710669043710,-5856.67,0.00015379,2]
[319334969,1710669043720,-5856.67,0.00015379,2]
[319334970,1710669043730,-5856.67,0.00015379,2]
[319334971,1710669043739,-5856.67,0.00015379,2]
[319334972,1710669043749,-5856.67,0.00015379,2]
[319334973,1710669043760,-5856.67,0.00015379,2]
[319334974,1710669043769,-500.0,0.00015379,2]
[319334975,1710669043778,-500.0,0.00015379,2]
[319334976,1710669043787,-500.0,0.00015379,2]
[319334977,1710669043796,-500.0,0.00015379,2]
[319334978,1710669043806,-500.0,0.00015379,2]
[319334979,1710669043818,-500.0,0.00015379,2]
[319334980,1710669043828,-500.0,0.00015379,2]
[319334981,1710669043839,-1282932.25281403,0.0001538,2]
[319334982,1710669043849,-13087.47455815,0.000154,2]
[319334983,1710669043859,-500.0,0.00015478,2]
[319334984,1710669043869,-155.0,0.00015479,2]
[319334985,1710669043879,-155.0,0.000155,2]
[319334986,1710669043889,-600.0,0.000155,2]
[319334987,1710669043900,-240.0,0.0001562,2]
[319334988,1710669043911,-216.72790569,0.00015621,2]
[319334989,1710669043921,-203.02,0.00015883,2]
[319334990,1710669043932,-240.0,0.000159,2]
[319334991,1710669043943,-500.0,0.00015927,2]
[319334992,1710669043953,-170.03,0.00015943,2]
[319334993,1710669043963,-216.72790569,0.00015949,2]
[319334994,1710669043972,-1234.63932196,0.00016,2]
[319334995,1710669043982,-1400.0,0.00016045,2]
[319334996,1710669043991,-5352.39,0.00016116,2]
[319334997,1710669044001,-457.62,0.00016179,2]
[319334998,1710669044011,-216.0,0.0001619,2]
[319334999,1710669044021,-240.0,0.0001619,2]
[319335000,1710669044031,-216.72790569,0.00016277,2]
[319335001,1710669044041,-796.98,0.00016285,2]
[319335002,1710669044051,-500.0,0.00016438,2]
[319335003,1710669044060,-200.0,0.00016438,2]
[319335004,1710669044072,-4000.0,0.00016438,2]
[319335005,1710669044081,-500.0,0.00016438,2]
[319335006,1710669044090,-500.0,0.00016438,2]
[319335007,1710669044099,-216.0,0.0001647,2]
[319335008,1710669044108,-240.0,0.0001647,2]
[319335009,1710669044118,-2334.8623687,0.000165,2]
[319335010,1710669044128,-500.0,0.000166,2]
[319335011,1710669044139,-167.0,0.00016602,2]
[319335012,1710669044151,-216.72790569,0.00016605,2]
[319335013,1710669044160,-170.41,0.00016712,2]
[319335014,1710669044169,-216.0,0.0001675,2]
[319335015,1710669044179,-240.0,0.0001675,2]
[319335016,1710669044188,-216.72790569,0.00016933,2]
[319335017,1710669044198,-500.0,0.00016986,2]
[319335018,1710669044207,-600.0,0.00017,3]
[319335019,1710669044217,-1000.0,0.00017023,2]
[319335020,1710669044228,-159.78,0.0001704,2]
[319335021,1710669044238,-216.0,0.0001704,2]
[319335022,1710669044247,-240.0,0.0001704,2]
[319335023,1710669044256,-577.90147496,0.00017098,2]
[319335024,1710669044265,-167.0,0.0001715,2]
[319335025,1710669044274,-600.0,0.000172,2]
[319335026,1710669044283,-416.91354636,0.00017206,2]
[319335027,1710669044293,-416.91354636,0.00017212,2]
[319335028,1710669044302,-150.9130171,0.00017214,2]
[319335029,1710669044314,-222.09588591,0.00017218,2]
[319335030,1710669044323,-175.24221203,0.00017232,2]
[319335031,1710669044333,-216.72790569,0.0001726,2]
[319335032,1710669044342,-154.11102107,0.00017265,2]
[319335033,1710669044351,-222.09588591,0.0001728,2]
[319335034,1710669044361,-1704.75105132,0.00017304,2]
[319335035,1710669044373,-222.09588591,0.00017318,2]
[319335036,1710669044382,-216.0,0.0001732,2]
[319335037,1710669044393,-216.0,0.0001732,2]
[319335038,1710669044402,-240.0,0.0001732,2]
[319335039,1710669044580,-166.66008376,0.00017324,2]
[319335040,1710669044590,-154.11102107,0.00017333,2]
[319335041,1710669044599,-166.66666666,0.00017335,2]
[319335042,1710669044608,-1395.61810212,0.00017337,2]
[319335043,1710669044617,-210.0,0.0001734,2]
[319335044,1710669044626,-151.16603037,0.00017342,2]
[319335045,1710669044636,-156.51853803,0.00017357,2]
[319335046,1710669044645,-166.66666666,0.00017367,2]
[319335047,1710669044654,-416.91354636,0.00017397,2]
[319335048,1710669044663,-151.16603037,0.00017402,2]
[319335049,1710669044672,-157.78,0.0001742,2]
[319335050,1710669044682,-166.66666666,0.00017439,2]
[319335051,1710669044691,-474.2215864,0.00017445,2]
[319335052,1710669044700,-474.2215864,0.00017457,2]
[319335053,1710669044710,-1704.75105132,0.00017465,2]
[319335054,1710669044719,-151.16603037,0.0001747,2]
[319335055,1710669044729,-222.09588591,0.00017489,2]
[319335056,1710669044738,-500.0,0.00017499,2]
[319335057,1710669044747,-2500.0,0.000175,2]
[319335058,1710669044756,-154.11102107,0.00017502,2]
[319335059,1710669044766,-170.60792333,0.00017524,2]
[319335060,1710669044775,-649.06,0.00017527,2]
[319335061,1710669044784,-500.0,0.00017527,2]
[319335062,1710669044793,-500.0,0.00017527,2]
[319335063,1710669044802,-500.0,0.00017527,2]
[319335064,1710669044811,-500.0,0.00017527,2]
[319335065,1710669044822,-500.0,0.00017527,2]
[319335066,1710669044831,-500.0,0.00017527,2]
[319335067,1710669044840,-4723.34,0.00017527,2]
[319335068,1710669044849,-5856.67,0.00017527,2]
[319335069,1710669044859,-375.64,0.00017527,2]
[319335070,1710669044868,-474.2215864,0.00017528,2]
[319335071,1710669044876,-152.0,0.00017533,3]
[319335072,1710669044885,-500.0,0.00017534,2]
[319335073,1710669044894,-156.01973643,0.0001754,2]
[319335074,1710669044904,-227.57700325,0.00017573,2]
[319335075,1710669044913,-216.72790569,0.00017588,2]
[319335076,1710669044922,-1395.61810212,0.00017591,2]
[319335077,1710669044931,-416.91354636,0.00017592,2]
[319335078,1710669044940,-216.0,0.000176,2]
[319335079,1710669044949,-216.0,0.000176,2]
[319335080,1710669044958,-240.0,0.000176,2]
[319335081,1710669044967,-161.60434797,0.00017609,2]
[319335082,1710669044976,-474.2215864,0.00017611,2]
[319335083,1710669044985,-210.0,0.0001762,2]
[319335084,1710669044994,-157.82775288,0.00017642,2]
[319335085,1710669045004,-155.0817669,0.00017643,2]
[319335086,1710669045013,-156.78245889,0.00017669,2]
[319335087,1710669045023,-500.0,0.00017696,2]
[319335088,1710669045033,-167.0,0.00017698,2]
[319335089,1710669045041,-474.2215864,0.00017711,2]
[319335090,1710669045050,-166.66666666,0.00017733,2]
[319335091,1710669045059,-154.11102107,0.00017745,2]
[319335092,1710669045071,-239.453304,0.00017751,2]
[319335093,1710669045080,-168.32211851,0.00017762,2]
[319335094,1710669045089,-164.9477599,0.00017783,2]
[319335095,1710669045099,-150.0,0.00017799,2]
[319335096,1710669045108,-150.0,0.00017801,2]
[319335097,1710669045118,-227.57700325,0.00017804,2]
[319335098,1710669045127,-245.52,0.00017808,10]
[319335099,1710669045136,-189.07880348,0.00017815,2]
[319335100,1710669045149,-154.45832824,0.00017824,2]
[319335101,1710669045158,-416.91354636,0.00017826,2]
[319335102,1710669045167,-203.02,0.00017868,2]
[319335103,1710669045176,-216.0,0.0001789,2]
[319335104,1710669045185,-216.0,0.0001789,2]
[319335105,1710669045195,-240.0,0.0001789,2]
[319335106,1710669045204,-210.0,0.000179,2]
[319335107,1710669045213,-1704.75105132,0.00017902,2]
[319335108,1710669045223,-796.98,0.00017913,2]
[319335109,1710669045232,-150.0,0.00017915,2]
[319335110,1710669045241,-216.72790569,0.00017916,2]
[319335111,1710669045250,-416.91354636,0.00017917,2]
[319335112,1710669045259,-150.0,0.00017939,2]
[319335113,1710669045269,-150.0,0.00017939,2]
[319335114,1710669045278,-189.07880348,0.00017949,2]
[319335115,1710669045288,-176.99758743,0.0001795,2]
[319335117,1710669045297,-150.0,0.00017953,2]
[319335118,1710669045306,-222.09588591,0.00017963,2]
[319335119,1710669045318,-416.91354636,0.00017967,2]
[319335120,1710669045327,-500.0,0.0001797,2]
[319335121,1710669045337,-152.0,0.00017987,4]
[319335122,1710669045347,-155.0,0.00018,2]
[319335123,1710669045357,-211.13956938,0.00018,2]
[319335124,1710669045368,-234.756982,0.00018,2]
[319335126,1710669045378,-1500.0,0.00018,2]
[319335128,1710669045388,-500.0,0.00018007,2]
[319335130,1710669045397,-500.0,0.00018007,2]
[319335132,1710669045407,-500.0,0.00018007,2]
[319335134,1710669045417,-500.0,0.00018007,2]
[319335136,1710669045426,-155.0,0.00018007,2]
[319335138,1710669045436,-500.0,0.00018007,2]
[319335140,1710669045446,-500.0,0.00018007,2]
[319335142,1710669045455,-502.77676546,0.00018007,2]
[319335144,1710669045464,-502.32867531,0.00018007,2]
[319335146,1710669045474,-500.0,0.00018007,2]
[319335148,1710669045483,-500.0,0.00018007,2]
[319335150,1710669045493,-500.0,0.00018007,2]
[319335152,1710669045503,-174.94114853,0.00018007,2]
[319335154,1710669045512,-500.0,0.00018007,2]
[319335156,1710669045522,-500.0,0.00018007,2]
[319335158,1710669045531,-500.0,0.00018007,2]
[319335160,1710669045540,-503.19914248,0.00018007,2]
[319335162,1710669045549,-500.0,0.00018007,2]
[319335164,1710669045559,-500.0,0.00018007,2]
[319335166,1710669045571,-500.0,0.00018007,2]
[319335168,1710669045580,-500.0,0.00018007,2]
[319335170,1710669045589,-500.0,0.00018007,2]
[319335171,1710669045598,-500.0,0.00018007,2]
[319335172,1710669045605,-500.0,0.00018007,2]
[319335173,1710669045614,-157.78,0.00018029,2]
[319335174,1710669045623,-1395.61810212,0.00018031,2]
[319335176,1710669045632,-1395.61810212,0.00018065,2]
[319335178,1710669045641,-1718.42,0.00018065,2]
[319335180,1710669045652,-150.0,0.00018077,2]
[319335182,1710669045661,-500.0,0.00018082,2]
[319335184,1710669045670,-150.0,0.00018085,2]
[319335185,1710669045680,-150.0,0.00018087,2]
[319335186,1710669045689,-161.60434797,0.00018098,2]
[319335187,1710669045698,-1395.61810212,0.00018108,2]
[319335188,1710669045707,-1500.0,0.00018119,2]
[319335189,1710669045716,-150.0,0.00018135,2]
[319335190,1710669045725,-159.0,0.00018137,2]
[319335191,1710669045734,-162.65349021,0.00018139,2]
[319335192,1710669045743,-161.60434797,0.00018141,2]
[319335193,1710669045752,-160.0,0.00018164,2]
[319335194,1710669045761,-150.0,0.00018168,2]
[319335195,1710669045773,-216.0,0.0001817,2]
[319335196,1710669045783,-216.0,0.0001817,2]
[319335197,1710669045792,-240.0,0.0001817,2]
[319335198,1710669045801,-210.0,0.0001818,2]
[319335199,1710669045810,-399.66,0.00018192,2]
[319335200,1710669045823,-150.0,0.00018193,2]
[319335201,1710669045833,-457.62,0.00018201,2]
[319335202,1710669045842,-189.07880348,0.00018228,2]
[319335203,1710669045851,-158.29036304,0.00018234,2]
[319335204,1710669045860,-216.72790569,0.00018244,2]
[319335205,1710669045870,-245.52,0.00018245,10]
[319335206,1710669045880,-167.0,0.00018246,2]
[319335207,1710669045889,-500.0,0.00018247,2]
[319335208,1710669045899,-154.45832824,0.00018248,2]
[319335209,1710669045909,-239.453304,0.00018267,2]
[319335210,1710669045918,-166.66666666,0.00018291,2]
[319335211,1710669045928,-1395.61810212,0.0001832,2]
[319335212,1710669045937,-166.66666669,0.00018341,2]
[319335213,1710669045947,-168.49322419,0.00018369,2]
[319335214,1710669045957,-1944.2656,0.00018371,2]
[319335215,1710669045967,-150.0,0.00018374,2]
[319335216,1710669045977,-416.91354636,0.00018388,2]
[319335217,1710669045988,-220.0,0.000184,2]
[319335218,1710669045999,-349.0,0.000184,2]
[319335219,1710669046010,-150.0,0.00018419,2]
[319335220,1710669046023,-168.49322419,0.00018427,2]
[319335221,1710669046033,-150.0,0.00018428,2]
[319335222,1710669046043,-158.45099349,0.0001843,2]
[319335224,1710669046055,-152.0,0.00018441,5]
[319335225,1710669046068,-216.0,0.0001845,2]
[319335226,1710669046079,-216.0,0.0001845,2]
[319335227,1710669046090,-240.0,0.0001845,2]
[319335228,1710669046103,-166.66666666,0.00018451,2]
[319335229,1710669046114,-474.2215864,0.00018456,2]
[319335230,1710669046125,-210.0,0.0001846,2]
[319335231,1710669046135,-500.0,0.00018466,2]
[319335232,1710669046148,-500.0,0.00018466,2]
[319335233,1710669046158,-152.64766201,0.00018469,2]
[319335234,1710669046168,-150.9130171,0.00018476,2]
[319335235,1710669046179,-1500.0,0.000185,2]
[319335236,1710669046190,-500.0,0.00018518,2]
[319335237,1710669046200,-151.16603037,0.0001852,2]
[319335238,1710669046210,-152.64766201,0.00018531,2]
[319335239,1710669046220,-154.11102107,0.0001857,2]
[319335240,1710669046230,-216.72790569,0.00018572,2]
[319335241,1710669046240,-1704.75105132,0.00018584,2]
[319335242,1710669046249,-150.0,0.00018597,2]
[319335243,1710669046259,-222.09588591,0.00018603,2]
[319335244,1710669046269,-5000.0,0.00018608,2]
[319335245,1710669046278,-500.0,0.0001863,2]
[319335246,1710669046288,-157.78,0.00018639,2]
[319335247,1710669046297,-416.91354636,0.0001866,2]
[319335248,1710669046307,-416.91354636,0.0001868,2]
[319335249,1710669046320,-245.52,0.00018681,10]
[319335250,1710669046335,-150.0,0.00018687,2]
[319335251,1710669046345,-1395.61810212,0.00018691,2]
[319335252,1710669046355,-222.09588591,0.00018695,2]
[319335253,1710669046365,-151.16603037,0.00018698,2]
[319335254,1710669046376,-500.0,0.00018699,2]
[319335255,1710669046387,-500.0,0.00018699,2]
[319335256,1710669046397,-500.0,0.00018699,2]
[319335257,1710669046407,-17575.0,0.000187,5]
[319335258,1710669046417,-222.09588591,0.00018702,2]
[319335259,1710669046429,-227.57700325,0.00018707,2]
[319335260,1710669046438,-227.57700325,0.00018716,2]
[319335261,1710669046447,-216.0,0.0001873,2]
[319335262,1710669046457,-216.0,0.0001873,2]
[319335263,1710669046467,-240.0,0.0001873,2]
[319335264,1710669046476,-210.0,0.0001874,2]
[319335265,1710669046486,-150.0,0.00018787,2]
[319335266,1710669046496,-500.0,0.00018792,2]
[319335267,1710669046506,-167.0,0.00018794,2]
[319335268,1710669046515,-500.0,0.00018799,2]
[319335269,1710669046525,-500.0,0.00018799,2]
[319335270,1710669046535,-59047.03754133,0.000188,2]
[319335271,1710669046544,-300.0,0.00018802,2]
[319335272,1710669046554,-1704.75105132,0.00018808,2]
[319335273,1710669046563,-189.07880348,0.00018808,2]
[319335274,1710669046576,-156.51853803,0.00018808,2]
[319335275,1710669046585,-416.91354636,0.00018815,2]
[319335276,1710669046595,-168.4932242,0.0001883,2]
[319335277,1710669046605,-1704.75105132,0.0001885,2]
[319335278,1710669046614,-152.0,0.00018895,6]
[319335279,1710669046623,-239.453304,0.00018896,2]
[319335280,1710669046631,-150.0,0.00018897,2]
[319335281,1710669046641,-500.0,0.00018899,2]
[319335282,1710669046651,-500.0,0.00018899,2]
[319335283,1710669046660,-211.0,0.000189,2]
[319335284,1710669046669,-569.51721837,0.000189,2]
[319335285,1710669046679,-216.72790569,0.000189,2]
[319335286,1710669046689,-601.4216148,0.000189,2]
[319335287,1710669046698,-227.57700325,0.00018913,2]
[319335288,1710669046708,-157.82775288,0.00018928,2]
[319335289,1710669046717,-500.0,0.00018931,2]
[319335290,1710669046726,-500.0,0.00018932,2]
[319335291,1710669046736,-154.11102107,0.00018941,2]
[319335292,1710669046745,-150.0,0.00018946,2]
[319335293,1710669046754,-150.0,0.0001895,2]
[319335294,1710669046763,-1500.0,0.0001895,2]
[319335295,1710669046772,-474.2215864,0.0001895,2]
[319335296,1710669046781,-150.0,0.00018953,2]
[319335297,1710669046791,-150.0,0.00018964,2]
[319335298,1710669046800,-1395.61810212,0.00018969,2]
[319335299,1710669046810,-909142.91758017,0.00018984,3]
[319335300,1710669046829,-553.21797646,0.00018984,3]
[319335301,1710669046850,-998.160651,0.00013698,2]
[319335302,1710669046969,-692.99734915,0.00013698,2]
[319335303,1710669047051,-2605.86492546,0.00013698,2]
[319335304,1710669047060,-121948.30271467,0.00018984,3]
[319335305,1710669047076,-33129.2001473,0.00018984,3]
[319335306,1710669047087,-726.11180922,0.00018984,3]
[319335307,1710669047098,-318.72430786,0.00018984,3]
[319335308,1710669047112,-869465.39624978,0.00018984,3]
[319335309,1710669047133,-297.77501202,0.00015249,2]
[319335310,1710669047147,-264.88877366,0.00015249,2]
[319335311,1710669047157,-24.6558101,0.00018984,3]
[319335312,1710669047169,-34302.605909,0.00018984,3]
[319335313,1710669047186,-378.53790062,0.00018984,3]
[319335314,1710669047198,-10699.9999,0.00018984,3]